[Event "42nd WALTON Women-ch Bangladesh 2024"]
[Site "Dhaka"]
[Date "2024.05.26"]
[Round "7.5"]
[White "Sultana, Sharmin Shirin"]
[Black "Israt, Jahan Diba"]
[Result "1-0"]
[ECO "D37"]
[WhiteElo "1927"]
[BlackElo "1904"]
[Annotator "NA RC"]
[PlyCount "107"]
[EventDate "2024.05.20"]
[EventType "tourn"]
[EventCountry "BAN"]
[SourceTitle "playchess.com"]
[Source "ChessBase"]
[SourceQuality "1"]
[TimeControl "40/5400+30:1800+30"]

1. d4 {[%emt 0:00:45]} d5 {[%emt 0:05:54]} 2. c4 {[%emt 0:00:14]} e6 {[%emt 0:00:22]} 3. Nc3 {[%emt 0:00:16]} Nf6 {[%emt 0:00:10]} 4. Nf3 {[%emt 0:00:33]} Be7 {[%emt 0:00:12]} 5. Bf4 {[%emt 0:01:16]} c6 {[%emt 0:00:27]} 6. e3 {[%emt 0:00:11]} O-O {[%emt 0:00:09]} 7. Qc2 {[%emt 0:01:26]} Nbd7 {[%emt 0:01:11]} 8. h3 {[%emt 0:01:08]} Re8 {[%emt 0:01:07]} 9. Be2 {[%emt 0:05:56] D37: Queen's Gambit Declined: 5 Bf4.} dxc4 {[%emt 0:03:51]} 10. Bxc4 {[%emt 0:00:06]} Nb6 {[%emt 0:00:50]} 11. Be2 {[%emt 0:03:29]} Bd6 {[%emt 0:05:51]} (11... Bd7 $14) 12. Bxd6 {[%emt 0:06:46]} Qxd6 {[%emt 0:00:07]} 13. O-O {[%emt 0:00:21]} Nbd7 {[%emt 0:02:05]} 14. Rfd1 {[%emt 0:07:34]} Qe7 {[%emt 0:01:07]} 15. Ne4 {[%emt 0:14:07]} h6 {[%emt 0:03:55]} 16. Rac1 {[%emt 0:11:09]} Nxe4 {[%emt 0:04:36]} 17. Qxe4 {[%emt 0:01:20]} Qb4 {[%emt 0:01:37]} 18. Qc2 {[%emt 0:09:06]} Qa5 {[%emt 0:01:44]} 19. Qb3 {[%emt 0:06:30]} Nf6 {[%emt 0:08:05]} 20. Rc5 {[%emt 0:06:33]} Qb6 {[%emt 0:00:42]} 21. Qc2 {[%emt 0:00:54]} Bd7 {[%emt 0:01:22]} 22. Ne5 {[%emt 0:04:21]} Rac8 {[%emt 0:01:57]} 23. Bd3 {[%emt 0:01:35]} (23. b4 $16) 23... Re7 {[%emt 0:02:52]} 24. Qe2 {[%emt 0:03:25]} Be8 {[%emt 0:04:19]} 25. a3 {[%emt 0:03:44]} Nh7 {[%emt 0:10:20]} 26. Bb1 {[%emt 0:01:10]} Nf8 {[%emt 0:00:32]} 27. b4 {[%emt 0:00:55]} f6 {[%emt 0:01:05]} 28. Nd3 {[%emt 0:02:36]} Nd7 {[%emt 0:02:09]} 29. Rc3 {[%emt 0:01:05]} Qb5 {[%emt 0:01:28]} 30. Nf4 {[%emt 0:02:43]} Qg5 $2 {[%emt 0:06:32]} (30... Qxe2 $11 {and Black stays safe.} 31. Nxe2 Nb6) 31. Qg4 $2 {[%emt 0:01:21]} (31. d5 $18) 31... Qxg4 {[%emt 0:13:48]} 32. hxg4 {[%emt 0:00:01]} Nf8 {[%emt 0:00:49] [#]} (32... Nb6 $11) 33. d5 {[%emt 0:02:14]} Rd8 {[%emt 0:07:04]} 34. d6 $1 {[%emt 0:01:08]} Red7 {[%emt 0:00:24]} 35. Rcd3 {[%emt 0:00:51]} e5 {[%emt 0:00:34]} 36. Ba2+ {[%emt 0:00:13]} Bf7 {[%emt 0:00:29]} 37. Bxf7+ {[%emt 0:00:29]} Kxf7 {[%emt 0:00:08]} 38. Nh5 {[%emt 0:01:21]} Ke6 {[%emt 0:01:05]} 39. f4 {[%emt 0:00:35]} g6 {[%emt 0:01:36]} (39... Rxd6 $2 {is the wrong capture.} 40. Nxg7+ Kf7 41. Rxd6 $18) 40. f5+ $1 {[%emt 0:00:29]} gxf5 {[%emt 0:02:26]} 41. gxf5+ {[%emt 0:01:50]} Kf7 {[%emt 0:05:01] [#]} 42. Ng3 $18 {[%emt 0:05:37]} Rb8 {[%emt 0:11:39]} 43. Ne4 {[%emt 0:04:15]} Rdd8 {[%emt 0:03:54]} 44. Kf2 {[%emt 0:04:40]} Nd7 {[%emt 0:03:23]} 45. Rh1 {[%emt 0:01:32]} Rh8 {[%emt 0:03:00]} 46. Rd2 {[%emt 0:03:54]} Rbg8 {[%emt 0:03:53]} 47. Kf3 {[%emt 0:00:45]} Rh7 {[%emt 0:01:49]} 48. g3 {[%emt 0:00:42]} Ra8 {[%emt 0:01:21]} 49. g4 {[%emt 0:03:31]} a5 {[%emt 0:01:24]} 50. g5 {[%emt 0:00:12]} Kg7 {[%emt 0:01:11]} 51. gxh6+ {[%emt 0:01:55]} Kf7 {[%emt 0:02:09]} 52. Rg2 {[%emt 0:01:21]} axb4 {[%emt 0:00:28]} 53. axb4 {[%emt 0:00:02]} Ra4 {[%emt 0:00:30]} 54. Rhg1 {[%emt 0:00:32]} 1-0

[Event "42nd WALTON Women-ch Bangladesh 2024"]
[Site "Dhaka"]
[Date "2024.05.26"]
[Round "7.6"]
[White "Noshin, Anjum"]
[Black "Ahmed, Walijah"]
[Result "1-0"]
[ECO "B66"]
[WhiteElo "2025"]
[BlackElo "1878"]
[Annotator "NA RC"]
[PlyCount "133"]
[EventDate "2024.05.20"]
[EventType "tourn"]
[EventCountry "BAN"]
[SourceTitle "playchess.com"]
[Source "ChessBase"]
[SourceQuality "1"]
[TimeControl "40/5400+30:1800+30"]

1. e4 {[%emt 0:01:28]} c5 {[%emt 0:06:04]} 2. Nf3 {[%emt 0:00:11]} d6 {[%emt 0:00:05]} 3. d4 {[%emt 0:00:07]} cxd4 {[%emt 0:00:04]} 4. Nxd4 {[%emt 0:00:06]} Nf6 {[%emt 0:00:06]} 5. Nc3 {[%emt 0:00:37]} Nc6 {[%emt 0:00:15]} 6. Bg5 {[%emt 0:00:52]} e6 {[%emt 0:00:21]} 7. Qd2 {[%emt 0:00:28]} a6 {[%emt 0:00:25]} 8. O-O-O {[%emt 0:02:09]} Be7 {[%emt 0:00:22]} 9. f3 {[%emt 0:03:43]} Nxd4 {[%emt 0:01:25]} 10. Qxd4 {[%emt 0:00:09]} b5 {[%emt 0:00:25] B66: Sicilian: Richter-Rauzer: 7...a6 8 0-0-0 h6.} 11. Kb1 {[%emt 0:03:47]} Bb7 {[%emt 0:00:44]} 12. Bxf6 {[%emt 0:03:56]} gxf6 {[%emt 0:06:26]} 13. Be2 {[%emt 0:02:37]} Qc7 {[%emt 0:00:23]} 14. g3 {[%emt 0:05:17]} Qc5 {[%emt 0:03:12]} 15. Qd2 {[%emt 0:00:56]} h5 {[%emt 0:02:50]} 16. Bd3 {[%emt 0:02:43]} O-O-O {[%emt 0:02:32]} 17. Rhe1 {[%emt 0:04:30]} Kb8 {[%emt 0:04:19]} 18. a3 {[%emt 0:01:37]} Rc8 {[%emt 0:03:19]} 19. f4 {[%emt 0:08:30]} Bf8 {[%emt 0:12:36]} 20. Bf1 {[%emt 0:09:26]} h4 {[%emt 0:07:55]} 21. g4 {[%emt 0:03:14]} Bh6 {[%emt 0:02:55]} 22. h3 {[%emt 0:01:43]} Rhd8 {[%emt 0:01:05]} 23. Bd3 {[%emt 0:07:12]} Rc7 {[%emt 0:07:28]} 24. Rf1 {[%emt 0:03:46]} Rdc8 {[%emt 0:11:44]} 25. Qe1 {[%emt 0:03:04]} Qb6 {[%emt 0:02:48]} (25... Bg7 $14) 26. Qf2 {[%emt 0:10:43]} ({White should try} 26. Qxh4 $16 Bg7 27. Qf2 Qxf2 28. Rxf2) 26... Qa5 {[%emt 0:02:56]} (26... Qxf2 $11 {remains equal.} 27. Rxf2 Rd8) 27. Qd4 {[%emt 0:07:34]} Bf8 {[%emt 0:02:53]} (27... Rxc3 $11 28. bxc3 (28. Qxf6 R3c5 $11) 28... Qxc3 (28... Qxa3 29. g5 $11) 29. Qxd6+ Ka8) 28. Na2 $1 {[%emt 0:04:19]} d5 {[%emt 0:01:58]} 29. exd5 {[%emt 0:02:20]} (29. Qxf6 $2 {too greedy.} dxe4 30. Qe5 exd3 $19) 29... Bxd5 {[%emt 0:01:23]} 30. Nb4 {[%emt 0:02:03]} (30. f5 $1 $14) 30... Bc5 {[%emt 0:08:49]} 31. Qc3 $1 {[%emt 0:00:59]} (31. Qxf6 Bxb4 32. axb4 Qa2+ 33. Kc1 Bb3 $17) 31... Bxb4 {[%emt 0:01:01]} 32. Qxb4 {[%emt 0:00:07]} Qxb4 {[%emt 0:00:13]} 33. axb4 {[%emt 0:00:06]} Bg2 {[%emt 0:00:28]} 34. Rg1 {[%emt 0:01:59]} Bxh3 {[%emt 0:00:43]} 35. Rde1 {[%emt 0:02:13]} (35. Rd2 $1 $11 f5 36. gxf5) 35... f5 {[%emt 0:00:39]} 36. gxf5 {[%emt 0:00:30]} Bxf5 {[%emt 0:00:35]} ({Much worse is} 36... exf5 37. Rh1 Bg2 38. Rxh4 $11) 37. Bxf5 {[%emt 0:00:50]} exf5 {[%emt 0:00:04]} 38. c3 {[%emt 0:00:25]} Rc4 {[%emt 0:00:41]} 39. Ref1 {[%emt 0:00:48]} Rh8 {[%emt 0:00:57]} 40. Rg5 {[%emt 0:01:38]} h3 {[%emt 0:02:56]} 41. Rxf5 {[%emt 0:30:45]} Rcc8 {[%emt 0:10:23]} 42. Kc2 $17 {[%emt 0:00:00]} h2 {[%emt 0:09:57]} 43. Rh1 {[%emt 0:00:00]} Rcg8 {[%emt 0:01:01]} 44. Rg5 {[%emt 0:00:00]} Rxg5 {[%emt 0:01:58]} 45. fxg5 {[%emt 0:00:00]} Rh3 {[%emt 0:00:53]} 46. Kd2 {[%emt 0:00:00]} Kc7 {[%emt 0:00:55]} 47. Ke2 {[%emt 0:00:00]} Kd6 {[%emt 0:01:02]} 48. Kf2 {[%emt 0:00:00]} Ke5 {[%emt 0:02:14]} 49. Kg2 {[%emt 0:00:00]} Rh5 {[%emt 0:00:04]} 50. Rxh2 {[%emt 0:00:00]} Rxg5+ {[%emt 0:00:22]} 51. Kf3 {[%emt 0:00:00]} Rg1 {[%emt 0:01:11]} 52. Re2+ {[%emt 0:00:00]} Kf5 {[%emt 0:00:11]} 53. Rd2 {[%emt 0:00:00]} Rf1+ {[%emt 0:00:38]} 54. Ke3 {[%emt 0:00:00]} Rh1 {[%emt 0:02:53]} 55. Rf2+ {[%emt 0:00:00]} Ke6 {[%emt 0:00:25]} 56. b3 {[%emt 0:00:00]} f5 {[%emt 0:03:16]} 57. Kd4 {[%emt 0:00:00]} Ra1 {[%emt 0:04:29]} 58. c4 {[%emt 0:01:30]} Kf6 {[%emt 0:00:40]} 59. c5 {[%emt 0:03:10]} Rd1+ {[%emt 0:00:32]} 60. Kc3 {[%emt 0:00:06]} Rc1+ {[%emt 0:00:42]} 61. Rc2 {[%emt 0:00:38]} Re1 {[%emt 0:00:19]} 62. c6 {[%emt 0:01:30]} Re8 {[%emt 0:00:40]} 63. Kd4 {[%emt 0:00:18]} f4 {[%emt 0:00:28]} 64. c7 {[%emt 0:00:39]} Rc8 {[%emt 0:00:15]} 65. Kd5 {[%emt 0:00:06]} Ke7 {[%emt 0:00:50]} 66. Kc6 {[%emt 0:00:07]} f3 {[%emt 0:00:20]} 67. Kb7 {[%emt 0:00:12]} 1-0

[Event "42nd WALTON Women-ch Bangladesh 2024"]
[Site "Dhaka"]
[Date "2024.05.27"]
[Round "8.2"]
[White "Israt, Jahan Diba"]
[Black "Noshin, Anjum"]
[Result "1/2-1/2"]
[ECO "C58"]
[WhiteElo "1904"]
[BlackElo "2025"]
[Annotator "NA RC"]
[PlyCount "120"]
[EventDate "2024.05.20"]
[EventType "tourn"]
[EventCountry "BAN"]
[SourceTitle "playchess.com"]
[Source "ChessBase"]
[SourceQuality "1"]
[TimeControl "40/5400+30:1800+30"]

1. e4 {[%emt 0:00:02]} e5 {[%emt 0:00:12]} 2. Nf3 {[%emt 0:00:07]} Nc6 {[%emt 0:00:05]} 3. Bc4 {[%emt 0:00:05]} Nf6 {[%emt 0:00:05]} 4. Ng5 {[%emt 0:00:07]} d5 {[%emt 0:00:13]} 5. exd5 {[%emt 0:00:06]} Na5 {[%emt 0:00:06]} 6. Bb5+ {[%emt 0:00:06]} c6 {[%emt 0:00:05]} 7. dxc6 {[%emt 0:00:06]} bxc6 {[%emt 0:00:05]} 8. Bd3 {[%emt 0:00:07]} Nd5 {[%emt 0:00:38] C58: Two Knights: 4 Ng5 d5 5 exd5 Na5 sidelines.} 9. Ne4 {[%emt 0:02:05]} Nf4 {[%emt 0:02:49]} 10. Bf1 {[%emt 0:02:57]} f5 {[%emt 0:06:29]} 11. Nec3 {[%emt 0:00:59]} Bd6 {[%emt 0:09:45]} 12. d3 {[%emt 0:02:35]} Ne6 {[%emt 0:03:10]} (12... O-O $11) 13. Be2 {[%emt 0:08:53]} (13. g3 $14 {might be stronger.}) 13... O-O {[%emt 0:00:44]} 14. O-O {[%emt 0:05:10]} Nd4 {[%emt 0:04:14]} 15. Nd2 {[%emt 0:02:35]} Bb7 {[%emt 0:07:04]} 16. Nf3 {[%emt 0:06:01]} c5 {[%emt 0:05:37]} 17. Nxd4 {[%emt 0:06:51]} cxd4 {[%emt 0:10:14]} 18. Nb5 {[%emt 0:02:10]} Bb8 {[%emt 0:02:49]} 19. Na3 {[%emt 0:10:54]} e4 {[%emt 0:04:54]} 20. c3 {[%emt 0:02:43]} (20. Rb1 $11) 20... dxc3 {[%emt 0:04:38]} (20... Qd6 $5 21. g3 $8 f4 $17) 21. bxc3 {[%emt 0:02:28]} Qc7 {[%emt 0:01:04]} 22. g3 {[%emt 0:00:23]} Qxc3 {[%emt 0:01:01]} 23. Rb1 {[%emt 0:00:59]} exd3 {[%emt 0:05:35]} 24. Qxd3 {[%emt 0:02:08]} Be5 {[%emt 0:07:08]} 25. Bd2 {[%emt 0:15:46]} Qc6 {[%emt 0:10:43]} 26. Rxb7 {[%emt 0:07:30]} Nxb7 {[%emt 0:00:07] [#]} 27. Bf3 $1 {[%emt 0:01:56]} Qc7 {[%emt 0:03:46]} 28. Qc4+ $2 {[%emt 0:14:09]} (28. Rc1 $18 {has better winning chances.} Qe7 29. Nc4 (29. Qb3+ Kh8 $16)) 28... Rf7 {[%emt 0:06:09]} 29. Bd5 {[%emt 0:01:23]} Rd8 {[%emt 0:00:34]} 30. Bxf7+ {[%emt 0:01:36]} Qxf7 {[%emt 0:00:05]} 31. Bg5 {[%emt 0:00:36]} Rb8 {[%emt 0:04:09]} 32. Qxf7+ {[%emt 0:01:42]} Kxf7 {[%emt 0:00:05]} 33. Nc4 {[%emt 0:00:16]} Bc7 {[%emt 0:02:38]} 34. Ne3 {[%emt 0:01:18]} h6 {[%emt 0:00:00]} 35. Nd5 {[%emt 0:00:20]} hxg5 {[%emt 0:00:00]} 36. Nxc7 {[%emt 0:00:09]} Rc8 {[%emt 0:00:00]} 37. Nb5 {[%emt 0:00:26]} a6 {[%emt 0:00:00]} 38. Nd4 {[%emt 0:00:29]} Nd6 {[%emt 0:00:00]} 39. Rd1 {[%emt 0:00:51]} g6 {[%emt 0:00:21]} 40. Nf3 {[%emt 0:00:37]} Ne4 {[%emt 0:00:29]} 41. Ne5+ {[%emt 0:04:18]} Kf6 $11 {[%emt 0:02:44]} 42. Nd3 {[%emt 0:05:51]} Rc2 {[%emt 0:04:51]} 43. Rc1 {[%emt 0:05:17]} Rxa2 {[%emt 0:03:53]} 44. Rc6+ {[%emt 0:00:43]} Kg7 {[%emt 0:01:15]} 45. Ne5 {[%emt 0:02:09]} Nxf2 {[%emt 0:02:57]} 46. Rxg6+ {[%emt 0:01:03]} Kh7 {[%emt 0:00:05]} 47. Rf6 {[%emt 0:01:36]} Nh3+ {[%emt 0:00:16]} 48. Kh1 {[%emt 0:00:16]} g4 {[%emt 0:00:41]} 49. Nxg4 {[%emt 0:03:49]} fxg4 {[%emt 0:00:13]} 50. Rh6+ {[%emt 0:00:34]} Kg8 {[%emt 0:01:27]} 51. Rg6+ {[%emt 0:00:24]} Kf8 {[%emt 0:00:58]} 52. Rf6+ {[%emt 0:00:14]} Ke7 {[%emt 0:00:12]} 53. Re6+ {[%emt 0:00:14]} Kd8 {[%emt 0:00:38]} 54. Rd6+ {[%emt 0:00:12]} Ke7 {[%emt 0:00:21]} 55. Re6+ {[%emt 0:00:11]} Kd7 {[%emt 0:00:06]} 56. Rd6+ {[%emt 0:00:11]} Kc8 {[%emt 0:00:08]} 57. Rc6+ {[%emt 0:00:21]} Kb8 {[%emt 0:00:04]} 58. Rb6+ {[%emt 0:00:09]} Ka7 {[%emt 0:00:04]} 59. Rb7+ {[%emt 0:00:20]} Ka8 {[%emt 0:00:05]} 60. Rb8+ {[%emt 0:00:05]} Kxb8 {[%emt 0:00:05]} 1/2-1/2

[Event "42nd WALTON Women-ch Bangladesh 2024"]
[Site "Dhaka"]
[Date "2024.05.27"]
[Round "8.3"]
[White "Nusrat Jahan, Alo"]
[Black "Sultana, Sharmin Shirin"]
[Result "1/2-1/2"]
[ECO "C50"]
[WhiteElo "1850"]
[BlackElo "1927"]
[Annotator "NA RC"]
[PlyCount "130"]
[EventDate "2024.05.20"]
[EventType "tourn"]
[EventCountry "BAN"]
[SourceTitle "playchess.com"]
[Source "ChessBase"]
[SourceQuality "1"]
[TimeControl "40/5400+30:1800+30"]

1. e4 {[%emt 0:00:03]} e5 {[%emt 0:00:11]} 2. Nf3 {[%emt 0:00:08]} Nc6 {[%emt 0:00:10]} 3. Bc4 {[%emt 0:00:12]} Be7 {[%emt 0:00:35]} 4. c3 {[%emt 0:00:31]} Nf6 {[%emt 0:00:05]} 5. d4 {[%emt 0:01:40]} Nxe4 {[%emt 0:16:25]} 6. dxe5 {[%emt 0:05:42] C50: Hungarian Defence and Giuoco Pianissimo.} O-O {[%emt 0:05:30]} 7. O-O {[%emt 0:03:52]} d6 {[%emt 0:14:41]} 8. Qe2 {[%emt 0:10:56]} d5 {[%emt 0:20:12]} (8... Nc5 $11 {deserves consideration.}) 9. Bxd5 {[%emt 0:18:11]} Qxd5 {[%emt 0:02:46]} 10. Rd1 {[%emt 0:00:13]} Qe6 {[%emt 0:06:57]} 11. Qxe4 {[%emt 0:01:40]} f6 {[%emt 0:02:04]} 12. Re1 {[%emt 0:10:09]} fxe5 {[%emt 0:06:15]} 13. Nbd2 {[%emt 0:10:51]} Bf6 {[%emt 0:05:08]} 14. Nc4 {[%emt 0:03:31]} Qf7 {[%emt 0:04:00]} 15. b3 {[%emt 0:01:53]} Be6 {[%emt 0:03:05]} 16. Ne3 {[%emt 0:04:13]} Rfe8 {[%emt 0:03:41]} 17. Bb2 {[%emt 0:01:33]} Qg6 {[%emt 0:01:09]} 18. Qxg6 {[%emt 0:05:34]} hxg6 {[%emt 0:00:01]} 19. Rad1 {[%emt 0:01:11]} Red8 {[%emt 0:01:47]} 20. Nd2 {[%emt 0:02:26]} a5 {[%emt 0:00:54]} 21. Ne4 {[%emt 0:07:18]} b6 {[%emt 0:00:15]} 22. Rxd8+ {[%emt 0:01:43]} Bxd8 {[%emt 0:00:40]} 23. c4 {[%emt 0:01:21]} a4 {[%emt 0:00:38]} 24. Nc3 {[%emt 0:00:59]} axb3 {[%emt 0:00:45]} 25. axb3 {[%emt 0:00:01]} Nd4 {[%emt 0:00:30]} 26. b4 {[%emt 0:00:50]} c6 {[%emt 0:00:42]} 27. Ra1 {[%emt 0:01:29]} Rxa1+ {[%emt 0:01:48]} 28. Bxa1 {[%emt 0:00:01]} Nb3 {[%emt 0:00:01]} 29. Bb2 {[%emt 0:00:26]} Nd2 {[%emt 0:01:26]} 30. c5 {[%emt 0:00:37]} bxc5 {[%emt 0:00:26]} 31. bxc5 {[%emt 0:00:02]} Be7 {[%emt 0:00:29]} 32. Na4 {[%emt 0:00:55]} Bb3 {[%emt 0:00:05]} 33. Nb6 {[%emt 0:01:13]} Bxc5 {[%emt 0:00:11]} 34. Nd7 {[%emt 0:00:06]} Bd4 {[%emt 0:00:35]} 35. Bc1 {[%emt 0:01:48]} Nc4 {[%emt 0:00:57]} 36. Nxc4 {[%emt 0:00:39]} Bxc4 {[%emt 0:00:02]} 37. Be3 {[%emt 0:00:01]} Bc3 {[%emt 0:01:28]} 38. f3 {[%emt 0:00:43]} Kf7 {[%emt 0:00:13]} 39. Nc5 {[%emt 0:00:38]} Bd4 {[%emt 0:01:54]} 40. Kf2 {[%emt 0:00:11]} Ke7 {[%emt 0:00:48]} 41. Ne4 $19 {[%emt 0:31:15]} (41. Nb7 {was necessary.}) 41... Kd7 {[%emt 0:07:01]} 42. g3 {[%emt 0:00:00]} Bd5 {[%emt 0:02:19]} 43. Nc5+ {[%emt 0:00:00]} Kd6 {[%emt 0:05:02]} 44. Nb7+ {[%emt 0:00:00]} Kc7 {[%emt 0:00:18]} 45. Nc5 {[%emt 0:00:00]} Bc3 {[%emt 0:10:00]} 46. Na6+ {[%emt 0:00:00]} Kd7 {[%emt 0:03:16]} 47. Nc5+ {[%emt 0:00:00]} Ke7 {[%emt 0:00:59]} 48. Na4 {[%emt 0:00:00]} Bd4 {[%emt 0:02:01]} 49. Nc5 {[%emt 0:00:00]} Bg8 {[%emt 0:02:05]} 50. f4 {[%emt 0:00:00]} Ba1 {[%emt 0:00:47]} 51. fxe5 {[%emt 0:00:00]} Bxe5 {[%emt 0:00:03]} 52. h4 {[%emt 0:00:00]} Kd6 {[%emt 0:00:42]} 53. Kf3 {[%emt 0:02:25]} Kd5 {[%emt 0:00:04]} 54. Nd3 {[%emt 0:00:35]} Bd6 {[%emt 0:01:33]} 55. Nf4+ {[%emt 0:00:20]} Bxf4 {[%emt 0:00:04]} 56. Kxf4 {[%emt 0:00:30]} c5 {[%emt 0:00:54]} 57. Kg5 {[%emt 0:00:59]} Bf7 {[%emt 0:00:08]} 58. Bc1 {[%emt 0:02:00]} c4 {[%emt 0:01:29]} 59. Bb2 {[%emt 0:00:01]} Ke4 {[%emt 0:00:01]} 60. Bxg7 {[%emt 0:00:24]} Kd3 {[%emt 0:00:23]} 61. g4 {[%emt 0:00:45]} Be8 {[%emt 0:00:21]} 62. h5 {[%emt 0:00:11]} gxh5 {[%emt 0:00:02]} 63. gxh5 {[%emt 0:00:06]} Bxh5 {[%emt 0:00:12]} 64. Kxh5 {[%emt 0:00:04]} c3 {[%emt 0:00:03]} 65. Bxc3 {[%emt 0:00:06]} Kxc3 {[%emt 0:00:03]} 1/2-1/2

[Event "42nd WALTON Women-ch Bangladesh 2024"]
[Site "Dhaka"]
[Date "2024.05.27"]
[Round "8.4"]
[White "Jannatul, Ferdous"]
[Black "Kazi Zarin, Tasnim"]
[Result "0-1"]
[ECO "D02"]
[WhiteElo "1990"]
[BlackElo "1854"]
[Annotator "NA RC"]
[PlyCount "94"]
[EventDate "2024.05.20"]
[EventType "tourn"]
[EventCountry "BAN"]
[SourceTitle "playchess.com"]
[Source "ChessBase"]
[SourceQuality "1"]
[TimeControl "40/5400+30:1800+30"]

1. d4 {[%emt 0:01:17]} Nf6 {[%emt 0:00:09]} 2. Bf4 {[%emt 0:00:19]} d5 {[%emt 0:00:29]} 3. e3 {[%emt 0:00:25]} c5 {[%emt 0:00:43]} 4. c3 {[%emt 0:00:19]} e6 {[%emt 0:00:15]} 5. Nf3 {[%emt 0:00:41]} Bd6 {[%emt 0:00:09]} 6. Bg3 {[%emt 0:01:09]} Qc7 {[%emt 0:00:39]} 7. Nbd2 {[%emt 0:01:33]} Nbd7 {[%emt 0:00:45]} 8. Bd3 {[%emt 0:01:04]} O-O {[%emt 0:00:26]} 9. O-O {[%emt 0:00:09]} e5 {[%emt 0:00:13]} 10. dxe5 {[%emt 0:00:34]} Nxe5 {[%emt 0:00:02]} 11. Nxe5 {[%emt 0:00:36]} Bxe5 {[%emt 0:00:05]} 12. Bxe5 {[%emt 0:00:07]} Qxe5 {[%emt 0:00:04]} 13. Nf3 {[%emt 0:00:02]} Qe7 {[%emt 0:00:18] 13...Qe7 is better than 13...Qc7.} 14. h3 {[%emt 0:00:55]} Bd7 {[%emt 0:03:21]} 15. Nd2 $146 {[%emt 0:14:36] D02: 1 d4 d5 2 Nf3 sidelines, including 2...Nf6 3 g3 and 2...Nf6 3 Bf4.} ({Predecessor:} 15. Qe2 Rfd8 16. Rfd1 Ne4 17. Nd2 Ba4 18. Re1 Bc6 19. Rad1 Ba4 20. Rc1 Bc6 21. Rcd1 Ba4 22. Rc1 Bc6 {½-½ Fridman,D (2608)-Ponomariov,R (2631) Dortmund GER Grand Prix 2021 (3)}) 15... b5 {[%emt 0:08:28]} 16. e4 {[%emt 0:10:31]} c4 {[%emt 0:09:46]} 17. Bc2 {[%emt 0:00:52]} dxe4 {[%emt 0:12:59]} 18. Nxe4 {[%emt 0:02:33]} Bc6 {[%emt 0:02:41]} 19. Qd6 {[%emt 0:07:14]} Qxd6 {[%emt 0:07:07]} 20. Nxd6 {[%emt 0:01:39]} g6 {[%emt 0:01:02]} 21. a4 {[%emt 0:08:54]} a6 {[%emt 0:02:29]} 22. axb5 {[%emt 0:18:54]} axb5 {[%emt 0:00:30]} 23. Rxa8 {[%emt 0:00:03]} Rxa8 {[%emt 0:00:11]} 24. b3 {[%emt 0:02:28]} Rd8 {[%emt 0:07:36]} 25. Rd1 {[%emt 0:01:59]} cxb3 $1 {[%emt 0:09:11]} 26. Bxb3 {[%emt 0:01:23]} Kf8 $1 {[%emt 0:00:34]} 27. c4 {[%emt 0:03:24]} (27. Nxf7 $2 {too greedy.} Rxd1+ 28. Bxd1 Kxf7 $19) (27. Bxf7 $2 Ne4 (27... Ke7 $2 28. Re1+ Kxd6 29. Re6+ Kc5 30. Rxf6 $19) 28. f3 Nxd6 $19 (28... Rxd6 $2 29. Rxd6 Nxd6 30. Ba2 $19)) 27... b4 {[%emt 0:11:00]} 28. c5 {[%emt 0:04:15]} (28. Rd2 $15) 28... Ne4 {[%emt 0:01:08]} 29. Nxe4 {[%emt 0:06:06]} Rxd1+ {[%emt 0:00:05]} 30. Bxd1 {[%emt 0:00:11]} Bxe4 {[%emt 0:00:02]} 31. Bb3 {[%emt 0:00:41]} Ke7 {[%emt 0:16:23]} 32. f3 {[%emt 0:00:50]} Bf5 {[%emt 0:01:01]} 33. c6 {[%emt 0:10:35]} Be6 {[%emt 0:03:46]} 34. Ba4 $19 {[%emt 0:00:36]} Kd6 {[%emt 0:01:31]} 35. Kf2 {[%emt 0:00:32]} b3 {[%emt 0:00:26]} 36. Ke3 {[%emt 0:00:29]} b2 {[%emt 0:00:16]} 37. Bc2 {[%emt 0:00:09]} Bf5 {[%emt 0:00:54]} 38. Kd2 {[%emt 0:00:30]} b1=Q {[%emt 0:00:05]} 39. Bxb1 {[%emt 0:00:06]} Bxb1 {[%emt 0:00:04]} 40. Ke3 {[%emt 0:00:11]} Kxc6 {[%emt 0:01:14]} 41. Kf4 {[%emt 0:30:21]} f6 {[%emt 0:30:13]} 42. h4 {[%emt 0:00:14]} Kd6 {[%emt 0:00:23]} 43. g4 {[%emt 0:00:20]} Ke6 {[%emt 0:00:37]} 44. g5 {[%emt 0:01:12]} f5 {[%emt 0:00:13]} 45. h5 {[%emt 0:00:54]} Kd5 {[%emt 0:00:20]} 46. h6 {[%emt 0:01:01]} Kd4 {[%emt 0:00:07]} 47. Kg3 {[%emt 0:00:30]} Ke3 {[%emt 0:00:13]} 0-1

[Event "42nd WALTON Women-ch Bangladesh 2024"]
[Site "Dhaka"]
[Date "2024.05.27"]
[Round "8.5"]
[White "Warsia, Khusbu"]
[Black "Neelava, Choudhury"]
[Result "0-1"]
[ECO "C68"]
[WhiteElo "1905"]
[BlackElo "1778"]
[Annotator "RC"]
[PlyCount "58"]
[EventDate "2024.05.20"]
[EventType "tourn"]
[EventCountry "BAN"]
[SourceTitle "playchess.com"]
[Source "ChessBase"]
[SourceQuality "1"]
[TimeControl "40/5400+30:1800+30"]

1. e4 {[%emt 0:01:48]} e5 {[%emt 0:00:07]} 2. Nf3 {[%emt 0:00:16]} Nc6 {[%emt 0:00:09]} 3. Bb5 {[%emt 0:00:09]} a6 {[%emt 0:00:08]} 4. Bxc6 {[%emt 0:00:09]} dxc6 {[%emt 0:00:03]} 5. O-O {[%emt 0:00:10]} Bg4 {[%emt 0:00:02]} 6. h3 {[%emt 0:00:11]} Bxf3 {[%emt 0:00:03]} 7. Qxf3 {[%emt 0:00:09]} Qd7 {[%emt 0:00:04]} 8. b3 {[%emt 0:04:52]} f6 {[%emt 0:04:06]} 9. Bb2 {[%emt 0:03:12]} O-O-O {[%emt 0:01:14]} 10. Rd1 {[%emt 0:03:51]} c5 {[%emt 0:03:45]} 11. d3 {[%emt 0:00:19]} h5 {[%emt 0:01:34]} 12. Nd2 {[%emt 0:00:54]} Kb8 {[%emt 0:02:37]} 13. a4 {[%emt 0:05:09]} g5 {[%emt 0:02:57]} 14. Qe2 {[%emt 0:06:08]} Ne7 {[%emt 0:14:11]} 15. Kh2 {[%emt 0:14:15]} Ng6 {[%emt 0:08:37]} 16. g3 {[%emt 0:00:40]} Bd6 {[%emt 0:03:08]} 17. Nc4 {[%emt 0:00:36]} f5 {[%emt 0:04:24]} 18. Ne3 {[%emt 0:05:16]} f4 {[%emt 0:05:32]} 19. Nf5 {[%emt 0:00:02]} Ne7 {[%emt 0:01:13]} 20. Nxe7 {[%emt 0:03:31]} Qxe7 {[%emt 0:00:16]} 21. gxf4 {[%emt 0:00:57]} exf4 {[%emt 0:03:44]} 22. f3 {[%emt 0:07:32]} Rhg8 {[%emt 0:02:20]} 23. e5 {[%emt 0:10:09]} g4 {[%emt 0:01:34]} 24. Qe1 {[%emt 0:00:17]} gxf3 {[%emt 0:09:29]} 25. exd6 {[%emt 0:00:07]} Rg2+ {[%emt 0:01:17]} 26. Kh1 {[%emt 0:00:05]} Qxd6 {[%emt 0:30:56]} 27. Qh4 {[%emt 0:19:51]} Rdg8 {[%emt 0:00:00]} 28. Rf1 {[%emt 0:04:05]} Qg6 {[%emt 0:00:00]} 29. Qe1 {[%emt 0:04:01]} Rh2+ {[%emt 0:00:00]} 0-1